bitfinex-derivatives/quotes_BTCF0:USTF0_20250330
["timestamp","ask_amount","ask_price","bid_price","bid_amount"]
[1743374414827,0.13141369,82620.0,82619.0,0.31818415]
[1743374416939,0.25245049,82620.0,82619.0,0.31818415]
[1743374417645,0.40195049,82620.0,82619.0,0.31818415]
[1743374417831,0.40195049,82620.0,82619.0,0.31698415]
[1743374418446,0.00120001,82620.0,82619.0,0.67778415]
[1743374418631,0.16916,82651.0,82633.0,0.1210388]
[1743374418939,0.1210373,82634.0,82633.0,0.87316]
[1743374419139,0.0605156,82639.0,82633.0,0.00156]
[1743374419332,0.21681646,82640.0,82639.0,0.12103]
[1743374419535,0.33784496,82640.0,82639.0,0.00204]
[1743374419735,0.1210388,82633.0,82631.0,0.4376407]
[1743374420032,0.1210388,82633.0,82632.0,0.67948]
[1743374420240,0.2420463,82633.0,82632.0,0.67948]
[1743374420439,0.5418463,82633.0,82632.0,0.67948]
[1743374420831,0.5418463,82633.0,82632.0,0.31868]
[1743374421039,0.4208075,82633.0,82622.0,0.3608]
[1743374421237,0.1210534,82623.0,82622.0,0.00144]
[1743374421455,0.1210578,82620.0,82619.0,0.00248415]
[1743374421755,0.2910578,82620.0,82619.0,0.00192415]
[1743374421939,0.41207555,82620.0,82619.0,0.00192415]
[1743374422350,0.41107555,82620.0,82619.0,0.00192415]
[1743374422751,0.56517555,82620.0,82619.0,0.00192415]
[1743374422954,0.56517555,82620.0,82619.0,0.00392415]
[1743374423253,0.00144,82620.0,82619.0,0.12498345]
[1743374423444,0.1210549,82622.0,82619.0,0.36472415]
[1743374423647,0.1210563,82621.0,82620.0,0.31]
[1743374423858,0.1210563,82621.0,82620.0,0.67224]
[1743374424044,0.2427331,82621.0,82620.0,0.67224]
[1743374424549,0.0605259,82625.0,82620.0,0.67224]
[1743374424550,0.1210483,82627.0,82620.0,0.67224]
[1743374424757,0.1210563,82621.0,82620.0,0.67524]
[1743374425341,0.12103094,82641.0,82637.0,0.121032]
[1743374425647,0.12103,82639.0,82638.0,0.3133]
[1743374425849,0.12103,82639.0,82638.0,0.31494]
[1743374426552,0.24203897,82639.0,82638.0,0.31494]
[1743374426758,0.72883897,82639.0,82638.0,0.31494]
[1743374427252,0.73183897,82639.0,82638.0,0.31494]
[1743374427454,0.12400897,82639.0,82638.0,0.31494]
[1743374427653,0.003,82639.0,82638.0,0.5859714]
[1743374427856,0.12403,82639.0,82638.0,0.67574]
[1743374428352,0.12703,82639.0,82638.0,0.67574]
[1743374428558,0.12703,82639.0,82638.0,0.7967714]
[1743374428743,0.12703,82639.0,82638.0,0.67574]
[1743374428945,0.12703,82639.0,82638.0,0.7967714]
[1743374429144,0.12403,82639.0,82638.0,0.7967714]
[1743374429359,0.12103,82639.0,82638.0,0.7977714]
[1743374430143,0.12103,82639.0,82638.0,0.7967714]
[1743374430546,0.0605141,82641.0,82638.0,0.7967714]
[1743374430547,0.0605056,82652.0,82643.0,0.1210241]
[1743374430759,0.0605034,82655.0,82643.0,0.1226641]
[1743374430950,0.0605034,82655.0,82643.0,0.2726641]
[1743374431555,0.12120405,82644.0,82643.0,0.1226641]
[1743374431753,0.00018145,82644.0,82643.0,0.1226641]
[1743374431954,0.25244968,82644.0,82643.0,0.00164]
[1743374432263,0.2432057,82644.0,82643.0,0.00164]
[1743374432462,0.2422057,82644.0,82643.0,0.00164]
[1743374432760,0.12120405,82644.0,82643.0,0.00264]
[1743374433066,0.12120405,82644.0,82643.0,0.29124]
[1743374433451,0.12103,82639.0,82638.0,0.3608]
[1743374433647,0.12223001,82639.0,82638.0,0.36196]
[1743374434366,0.24323166,82639.0,82638.0,0.36196]
[1743374435464,0.24623166,82639.0,82638.0,0.36196]
[1743374435862,0.1210534,82623.0,82619.0,0.00048415]
[1743374436061,0.1210578,82620.0,82619.0,0.00140415]
[1743374436264,0.1217378,82620.0,82619.0,0.00048415]
[1743374436765,0.24274677,82620.0,82619.0,0.00048415]
[1743374437565,0.24274677,82620.0,82619.0,0.00348415]
[1743374438054,0.24274677,82620.0,82619.0,0.00548415]
[1743374438758,0.00068,82620.0,82619.0,0.00548415]
[1743374439060,0.1217378,82620.0,82619.0,0.30968415]
[1743374439265,0.1217378,82620.0,82619.0,0.00628415]
[1743374439465,0.1217378,82620.0,82619.0,0.00548415]
[1743374439660,0.1217378,82620.0,82619.0,0.00628415]
[1743374439863,0.5367746,82620.0,82619.0,0.00628415]
[1743374440770,0.5367746,82620.0,82619.0,0.00128415]
[1743374441061,0.5367746,82620.0,82603.0,0.00048424]
[1743374441062,0.1210754,82608.0,82603.0,0.00048424]
[1743374441266,0.1218754,82608.0,82607.0,0.36152]
[1743374441768,0.1218754,82608.0,82603.0,0.00048424]
[1743374441769,0.1210813,82604.0,82603.0,0.00048424]
[1743374442063,0.1210813,82604.0,82584.0,0.3608]
[1743374442064,0.1210857,82601.0,82584.0,0.6665]
[1743374442264,0.1210857,82601.0,82573.0,0.3608]
[1743374442265,0.1211047,82588.0,82573.0,0.3608]
[1743374442464,0.1191047,82588.0,82575.0,0.1211227]
[1743374442863,0.1191047,82588.0,82574.0,0.3057]
[1743374443066,0.53388494,82588.0,82574.0,0.3057]
[1743374443257,0.52988494,82588.0,82576.0,0.1211217]
[1743374443568,0.52896494,82588.0,82574.0,0.4268245]
[1743374443755,0.52896494,82588.0,82579.0,0.1211171]
[1743374443955,0.52996494,82588.0,82587.0,0.00448433]
[1743374444668,0.52796494,82588.0,82587.0,0.00448433]
[1743374445065,0.52896494,82588.0,82587.0,0.00748433]
[1743374445364,0.53826631,82588.0,82587.0,0.00748433]
[1743374445762,0.53826631,82588.0,82575.0,0.0605617]
[1743374445763,0.1211229,82576.0,82575.0,0.1211204]
[1743374445964,0.1211238,82577.0,82576.0,0.1211217]
[1743374446265,0.0605595,82579.0,82574.0,0.2868]
[1743374446657,0.16464,82583.0,82575.0,0.0605617]
[1743374446963,0.16464,82583.0,82574.0,0.2868]
[1743374447165,0.1211238,82575.0,82574.0,0.2868]
[1743374447558,0.001,82576.0,82575.0,0.1211238]
[1743374447758,0.28634256,82588.0,82587.0,0.1211062]
[1743374447759,0.28534256,82588.0,82587.0,0.1211062]
[1743374447958,0.40736726,82588.0,82587.0,0.4825462]
[1743374448259,0.40736726,82588.0,82587.0,0.4819462]
[1743374448661,0.40736726,82588.0,82587.0,0.7777462]
[1743374450064,0.40736726,82588.0,82587.0,0.29644]
[1743374450370,0.25240976,82588.0,82587.0,0.00064]
[1743374450572,0.1211194,82578.0,82577.0,0.1463]
[1743374450770,0.1221194,82578.0,82577.0,0.14702]
[1743374451666,0.2246753,82584.0,82577.0,0.14702]
[1743374451667,0.0605448,82599.0,82581.0,0.0605574]
[1743374451867,0.00018157,82596.0,82594.0,0.1210959]
[1743374452177,0.12191597,82596.0,82595.0,0.6489]
[1743374452384,0.12195597,82596.0,82595.0,0.64954]
[1743374452671,0.01001637,82596.0,82595.0,0.7706344]
[1743374452862,0.13042937,82596.0,82595.0,0.7706344]
[1743374453367,0.13114937,82596.0,82595.0,0.64954]
[1743374454172,0.43044937,82596.0,82595.0,0.64954]
[1743374454670,0.43044937,82596.0,82595.0,0.36144]
[1743374454876,0.55152134,82596.0,82595.0,0.00064]
[1743374455059,0.1816519,82592.0,82591.0,0.1210992]
[1743374455259,0.1823719,82592.0,82591.0,0.00072]
[1743374455470,0.3454519,82592.0,82591.0,0.00072]
[1743374455674,0.0605521,82589.0,82588.0,0.1211047]
[1743374455868,0.0612721,82589.0,82588.0,0.1217447]
[1743374456373,0.0612721,82589.0,82588.0,0.2712447]
[1743374457770,0.00933637,82596.0,82595.0,0.1210944]
[1743374457973,0.0004,82612.0,82600.0,0.0605435]
[1743374458174,0.0004,82612.0,82603.0,0.4818827]
[1743374458175,0.21825671,82604.0,82603.0,0.4818827]
[1743374458378,0.1221613,82604.0,82603.0,0.4830427]
[1743374458673,0.1217213,82604.0,82603.0,0.4830427]
[1743374459682,0.1217213,82604.0,82603.0,0.00116]
[1743374459881,0.60358154,82604.0,82603.0,0.00116]
[1743374460081,0.121093,82596.0,82595.0,0.00018157]
[1743374460374,0.121853,82596.0,82595.0,0.00094157]
[1743374460962,0.48091324,82596.0,82595.0,0.00094157]
[1743374461165,0.48091324,82596.0,82595.0,0.00018157]
[1743374461563,0.359853,82596.0,82595.0,0.00018157]
[1743374461768,0.1211267,82573.0,82572.0,0.4819272]
[1743374461975,0.1219267,82573.0,82572.0,0.11194]
[1743374462875,0.0008,82573.0,82572.0,0.2330682]
[1743374463075,0.0605606,82577.0,82572.0,0.23224]
[1743374463281,0.1221267,82573.0,82572.0,0.00084]
[1743374463576,0.1228867,82573.0,82572.0,0.00084]
[1743374463773,0.00176,82573.0,82572.0,0.3620682]
[1743374464277,0.2328966,82594.0,82580.0,0.1211164]
[1743374464579,0.1211099,82585.0,82580.0,0.1218764]
[1743374464877,0.00094157,82581.0,82580.0,0.1218764]
[1743374465077,0.00018157,82581.0,82580.0,0.3609764]
[1743374465766,0.21717671,82594.0,82592.0,0.1210974]
[1743374465971,0.1211032,82589.0,82588.0,0.3608]
[1743374466279,0.1211179,82579.0,82578.0,0.00076]
[1743374466579,0.1218779,82579.0,82578.0,0.00152]
[1743374466875,0.1218779,82579.0,82578.0,0.00076]
[1743374467278,0.3634779,82579.0,82578.0,0.00076]
[1743374467478,0.48457479,82579.0,82578.0,0.00076]
[1743374468667,0.48557479,82579.0,82578.0,0.00076]
[1743374469868,0.24285689,82579.0,82578.0,0.00076]
[1743374470074,0.00176,82579.0,82578.0,0.1218794]
[1743374470269,0.001,82579.0,82578.0,0.3534794]
[1743374470669,0.24321479,82579.0,82578.0,0.00076]
[1743374470874,0.24321479,82579.0,82578.0,0.1218794]
[1743374470875,0.12289689,82579.0,82578.0,0.1218794]
[1743374471069,0.0018,82579.0,82578.0,0.1218794]
[1743374471265,0.001,82579.0,82578.0,0.3582794]
[1743374471780,0.00018157,82587.0,82586.0,0.1211076]
[1743374471986,0.00018157,82587.0,82586.0,0.4829476]
[1743374472166,0.16128,82597.0,82586.0,0.4829476]
[1743374472167,0.2220194,82606.0,82593.0,0.1210974]
[1743374472479,0.0605311,82617.0,82606.0,0.1210783]
[1743374472678,0.13004159,82607.0,82606.0,0.36212]
[1743374472874,0.13136159,82607.0,82606.0,0.36212]
[1743374473182,0.1223969,82607.0,82606.0,0.36212]
[1743374473573,0.1223969,82607.0,82606.0,0.4831983]
[1743374473768,0.1223969,82607.0,82606.0,0.36212]
[1743374473981,0.1253969,82607.0,82606.0,0.36212]
[1743374474182,0.2364969,82607.0,82606.0,0.36212]
[1743374474773,0.1253969,82607.0,82606.0,0.4831983]
[1743374474970,0.18428023,82607.0,82606.0,0.4831983]
[1743374475180,0.18728023,82607.0,82606.0,0.4831983]
[1743374475778,0.19625261,82607.0,82606.0,0.36212]
[1743374476085,0.1210886,82599.0,82588.0,0.3608]
[1743374476279,0.1220086,82599.0,82598.0,0.00118157]
[1743374476671,0.1211091,82585.0,82584.0,0.3608]
[1743374476883,0.00072,82585.0,82584.0,0.00064]
[1743374477088,0.00072,82585.0,82568.0,0.3608]
[1743374477089,0.1211252,82574.0,82573.0,0.40600097]
[1743374477291,0.1211252,82574.0,82573.0,0.40664097]
[1743374477473,0.239,82577.0,82573.0,0.40664097]
[1743374477677,0.3601208,82577.0,82576.0,0.1211223]
[1743374477978,0.3601208,82577.0,82576.0,0.1217623]
[1743374477979,0.3607608,82577.0,82576.0,0.1217623]
[1743374478179,0.3607608,82577.0,82576.0,0.00064]
[1743374478781,0.3617608,82577.0,82576.0,0.00064]
[1743374479490,0.1211282,82572.0,82571.0,0.00048443]
[1743374479787,0.1211517,82556.0,82554.0,0.3608]
[1743374479978,0.1211517,82556.0,82555.0,0.00112452]
[1743374480180,0.12219171,82556.0,82555.0,0.00112452]
[1743374480880,0.24332234,82556.0,82555.0,0.00048452]
[1743374481082,0.48522234,82556.0,82555.0,0.00048452]
[1743374481282,0.49419094,82556.0,82555.0,0.00048452]
[1743374481577,0.49419094,82556.0,82541.0,0.35919339]
[1743374481578,0.1211663,82546.0,82541.0,0.35919339]
[1743374481780,0.2820463,82546.0,82545.0,0.28807471]
[1743374482389,0.4031916,82546.0,82545.0,0.28807471]
[1743374482891,0.16072,82546.0,82545.0,0.40924251]
[1743374483091,0.2818863,82546.0,82545.0,0.28807471]
[1743374483790,0.001,82546.0,82545.0,0.40924251]
[1743374483989,0.121,82547.0,82545.0,0.24502]
[1743374484288,0.1211663,82546.0,82545.0,0.24502]
[1743374484494,0.1221663,82546.0,82545.0,0.24502]
[1743374484681,0.2424663,82546.0,82545.0,0.00072]
[1743374484988,0.2424663,82546.0,82534.0,0.3608]
[1743374484989,0.1211751,82540.0,82536.0,0.1267]
[1743374485287,0.1211751,82540.0,82539.0,0.00112462]
[1743374485288,0.1221751,82540.0,82539.0,0.00112462]
[1743374485789,0.2433204,82540.0,82539.0,0.00112462]
[1743374487479,0.2443204,82540.0,82539.0,0.00112462]
[1743374489698,0.002,82540.0,82539.0,0.00112462]
[1743374489900,0.001,82540.0,82539.0,0.12230122]
[1743374490194,0.001,82540.0,82539.0,0.00112462]
[1743374490195,0.1221751,82540.0,82539.0,0.00112462]
[1743374490387,0.1231751,82540.0,82539.0,0.00112462]
[1743374494594,0.002,82540.0,82539.0,0.12230122]
[1743374494794,0.001,82540.0,82539.0,0.34590122]
[1743374495204,0.1221751,82540.0,82539.0,0.34590122]
[1743374495604,0.001,82540.0,82539.0,0.34590122]
[1743374496296,0.1221751,82540.0,82539.0,0.34590122]
[1743374496993,0.1221751,82540.0,82539.0,0.22472462]
[1743374497402,0.1231751,82540.0,82539.0,0.00112462]
[1743374497795,0.3526751,82540.0,82539.0,0.00112462]
[1743374498198,0.47382921,82540.0,82539.0,0.00112462]
[1743374499801,0.0605937,82532.0,82526.0,0.3608]
[1743374500007,0.2248,82531.0,82526.0,0.36148]
[1743374500207,0.22604001,82531.0,82526.0,0.36148]
[1743374500404,0.1211942,82527.0,82526.0,0.36148]
[1743374500605,0.12239421,82527.0,82526.0,0.4826757]
[1743374501004,0.12239421,82527.0,82526.0,0.00068]
[1743374501205,0.12239421,82527.0,82517.0,0.1212085]
[1743374501206,0.1211986,82524.0,82517.0,0.1212085]
[1743374501402,0.12239861,82524.0,82518.0,0.1212074]
[1743374501601,0.12239861,82524.0,82523.0,0.00180471]
[1743374502002,0.23499861,82524.0,82523.0,0.00048471]
[1743374502510,0.23499861,82524.0,82523.0,0.12168481]
[1743374502702,0.23499861,82524.0,82523.0,0.00048471]
[1743374502903,0.35617621,82524.0,82523.0,0.00048471]
[1743374504109,0.35617621,82524.0,82523.0,0.12168481]
[1743374504411,0.23499861,82524.0,82523.0,0.23022481]
[1743374505194,0.00220001,82524.0,82523.0,0.59102481]
[1743374505400,0.14440483,82547.0,82536.0,0.121181]
[1743374505614,0.00138171,82537.0,82536.0,0.121821]
[1743374505817,0.00138171,82537.0,82536.0,0.339721]
[1743374506008,0.0001817,82537.0,82536.0,0.339721]
[1743374508211,0.21634622,82545.0,82544.0,0.1211693]
[1743374508411,0.21754623,82545.0,82544.0,0.4826893]
[1743374508610,0.45987374,82545.0,82544.0,0.00072]
[1743374508911,0.0605866,82542.0,82536.0,0.1133]
[1743374509111,0.06178661,82542.0,82541.0,0.1211737]
[1743374509311,0.06178661,82542.0,82541.0,0.1218537]
[1743374510210,0.27918661,82542.0,82541.0,0.1218537]
[1743374510509,0.27918661,82542.0,82541.0,0.00068]
[1743374510718,0.27918661,82542.0,82541.0,0.1218537]
[1743374511012,0.21860001,82542.0,82541.0,0.1218537]
[1743374511401,0.33977221,82542.0,82541.0,0.1218537]
[1743374511606,0.46092338,82542.0,82541.0,0.1218537]
[1743374512010,0.33977221,82542.0,82541.0,0.1218537]
[1743374512314,0.39870038,82542.0,82541.0,0.1218537]
[1743374514108,0.39870038,82542.0,82541.0,0.00068]
[1743374514316,0.51985155,82542.0,82541.0,0.00068]
[1743374515125,0.51985155,82542.0,82541.0,0.1218537]
[1743374515315,0.51985155,82542.0,82541.0,0.00068]
[1743374516716,0.6719241,82542.0,82541.0,0.00068]
[1743374517705,0.31920073,82542.0,82541.0,0.1218537]
[1743374517906,0.21220073,82542.0,82541.0,0.1218537]
[1743374518117,0.21220073,82542.0,82541.0,0.3505537]
[1743374518603,0.21100072,82542.0,82541.0,0.8195537]
[1743374519207,0.21224073,82542.0,82541.0,0.8195537]
[1743374519614,0.21100072,82542.0,82541.0,0.8195537]
[1743374520010,0.0001817,82547.0,82543.0,0.0605847]
[1743374520011,0.1211704,82544.0,82543.0,0.0605847]
[1743374520320,0.12237041,82544.0,82543.0,0.2923047]
[1743374520706,0.00120001,82544.0,82543.0,0.2923047]
[1743374520911,0.21779379,82547.0,82546.0,0.1211663]
[1743374521118,0.3401587,82547.0,82546.0,0.1218063]
[1743374521319,0.34027869,82547.0,82546.0,0.1218063]
[1743374521711,0.21911379,82547.0,82546.0,0.1218063]
[1743374521917,0.21779379,82547.0,82546.0,0.1218063]
[1743374522124,0.21779379,82547.0,82546.0,0.13235328]
[1743374522422,0.2190338,82547.0,82546.0,0.13235328]
[1743374522915,0.21779379,82547.0,82546.0,0.13235328]
[1743374523627,0.3608,82569.0,82559.0,0.1211473]
[1743374523814,0.17776337,82560.0,82559.0,0.4826673]
[1743374524424,0.21873258,82560.0,82559.0,0.7165673]
[1743374524620,0.21753257,82560.0,82559.0,0.7165673]
[1743374524925,0.24925161,82570.0,82569.0,0.1211326]
[1743374525121,0.25045162,82570.0,82569.0,0.4831326]
[1743374525810,0.25045162,82570.0,82569.0,0.7190326]
[1743374526625,0.25345162,82570.0,82569.0,0.7190326]
[1743374527407,0.37458272,82570.0,82569.0,0.3602326]
[1743374527612,0.37458272,82570.0,82569.0,0.0032]
[1743374528219,0.4716412,82570.0,82569.0,0.0032]
[1743374528421,0.5835412,82570.0,82569.0,0.002]
[1743374528623,0.5835412,82570.0,82569.0,0.1231326]
[1743374528822,0.5845412,82570.0,82569.0,0.002]
[1743374529128,0.23040001,82570.0,82569.0,0.1231326]
[1743374529421,0.00420001,82570.0,82569.0,0.1238126]
[1743374529615,0.003,82570.0,82569.0,0.3523126]
[1743374529820,0.1211311,82570.0,82569.0,0.3533126]
[1743374530014,0.2357311,82570.0,82569.0,0.2366126]
[1743374530217,0.23693111,82570.0,82569.0,0.1228126]
[1743374530818,0.23693111,82570.0,82569.0,0.1218126]
[1743374531027,0.23693111,82570.0,82569.0,0.1228126]
[1743374531412,0.23493111,82570.0,82569.0,0.1228126]
[1743374532014,0.3560412,82570.0,82569.0,0.00168]
[1743374532223,0.3570412,82570.0,82569.0,0.001]
[1743374532423,0.4675412,82570.0,82569.0,0.001]
[1743374532619,0.3454101,82570.0,82569.0,0.1221326]
[1743374532823,0.11480001,82570.0,82569.0,0.1228526]
[1743374533023,0.11480001,82570.0,82569.0,0.2337526]
[1743374533322,0.00220001,82570.0,82569.0,0.3417526]
[1743374534331,0.001,82570.0,82569.0,0.3417526]
[1743374534533,0.001,82570.0,82569.0,0.3410326]
[1743374535028,0.1211303,82571.0,82570.0,0.1211311]
[1743374535528,0.1211303,82571.0,82570.0,0.3519311]
[1743374535712,0.2331303,82571.0,82570.0,0.3519311]
[1743374536115,0.2331303,82571.0,82570.0,0.1211311]
[1743374537421,0.2331303,82571.0,82570.0,0.001]
[1743374537648,0.35423892,82571.0,82570.0,0.001]
[1743374538422,0.35423892,82571.0,82570.0,0.1221311]
[1743374538618,0.35423892,82571.0,82570.0,0.001]
[1743374539019,0.23442862,82571.0,82552.0,0.0605785]
[1743374539233,0.1211561,82553.0,82552.0,0.00068]
[1743374539435,0.1211561,82553.0,82552.0,0.1217975]
[1743374539729,0.12235611,82553.0,82552.0,0.1217975]
[1743374540232,0.35045611,82553.0,82552.0,0.1217975]
[1743374540632,0.002,82571.0,82560.0,0.1211458]
[1743374540817,0.2281,82570.0,82560.0,0.36148]
[1743374541024,0.00977863,82575.0,82574.0,0.1211252]
[1743374541225,0.00893863,82575.0,82574.0,0.1218452]
[1743374541424,0.00064,82575.0,82574.0,0.1218452]
[1743374541630,0.0605428,82602.0,82579.0,0.1211179]
[1743374541833,0.1210983,82593.0,82581.0,0.121115]
[1743374542127,0.14538611,82582.0,82581.0,0.482555]
[1743374542335,0.0001817,82588.0,82587.0,0.1211062]
[1743374542536,0.0001817,82588.0,82587.0,0.1217462]
[1743374542718,0.0001817,82588.0,82587.0,0.13244483]
[1743374542919,0.0001817,82588.0,82587.0,0.1217462]
[1743374543130,0.0001817,82588.0,82587.0,0.3445462]
[1743374543331,0.1212864,82588.0,82587.0,0.1217462]
[1743374543531,0.1219664,82588.0,82587.0,0.1217462]
[1743374543732,0.2326664,82588.0,82587.0,0.1217462]
[1743374543935,0.2326664,82588.0,82587.0,0.00064]
[1743374544135,0.1211164,82580.0,82579.0,0.1211178]
[1743374544333,0.1217564,82580.0,82579.0,0.1218378]
[1743374545143,0.00064,82580.0,82579.0,0.1218378]
[1743374545338,0.00064,82580.0,82579.0,0.4826378]
[1743374545531,0.1097,82581.0,82580.0,0.1211164]
[1743374545726,0.1097,82581.0,82580.0,0.1217964]
[1743374545727,0.11038,82581.0,82580.0,0.1217964]
[1743374545932,0.11038,82581.0,82580.0,0.3532964]
[1743374546322,0.1097,82581.0,82580.0,0.3532964]
[1743374546530,0.11038,82581.0,82580.0,0.3532964]
[1743374546721,0.18081782,82583.0,82582.0,0.1211135]
[1743374546929,0.18153782,82583.0,82582.0,0.1218335]
[1743374549435,0.21716309,82588.0,82587.0,0.1211062]
[1743374549737,0.2180431,82588.0,82587.0,0.1219862]
[1743374550335,0.2180431,82588.0,82587.0,0.2378862]
[1743374551340,0.12216641,82588.0,82587.0,0.1219862]
[1743374551524,0.1219264,82588.0,82587.0,0.1219862]
[1743374552240,0.1229264,82588.0,82587.0,0.4719862]
[1743374554222,0.60581009,82588.0,82587.0,0.35088]
[1743374554426,0.71681009,82588.0,82587.0,0.35088]
[1743374555827,0.71781009,82588.0,82587.0,0.35088]
[1743374556533,0.1211282,82572.0,82564.0,0.1211392]
[1743374556743,0.1217682,82572.0,82571.0,0.0008217]
[1743374556936,0.1217682,82572.0,82571.0,0.0001817]
[1743374557130,0.3473682,82572.0,82571.0,0.0001817]
[1743374557437,0.46845189,82572.0,82571.0,0.0001817]
[1743374557830,0.1211443,82561.0,82560.0,0.21498675]
[1743374558031,0.1217843,82561.0,82560.0,0.21562675]
[1743374558427,0.1217843,82561.0,82560.0,0.00064]
[1743374559134,0.00064,82561.0,82560.0,0.1217858]
[1743374559441,0.1227843,82561.0,82560.0,0.00064]
[1743374559837,0.1227843,82561.0,82560.0,0.23004]
[1743374560237,0.1227843,82561.0,82560.0,0.3511858]
[1743374560630,0.1227843,82561.0,82560.0,0.23004]
[1743374561427,0.0001817,82569.0,82560.0,0.3511858]
[1743374561635,0.0010217,82569.0,82568.0,0.121134]
[1743374561830,0.0001817,82569.0,82568.0,0.121934]
[1743374562034,0.0009817,82569.0,82568.0,0.121934]
[1743374562230,0.0009817,82569.0,82568.0,0.355234]
[1743374562231,0.2347817,82569.0,82568.0,0.355234]
[1743374563242,0.1231143,82569.0,82568.0,0.355234]
[1743374563445,0.1241143,82569.0,82568.0,0.355234]
[1743374564145,0.2425143,82569.0,82568.0,0.355234]
[1743374564739,0.2415143,82569.0,82568.0,0.355234]
[1743374565047,0.0039817,82569.0,82568.0,0.355234]
[1743374565234,0.0021817,82569.0,82568.0,0.355234]
[1743374565431,0.0041817,82569.0,82568.0,0.355234]
[1743374565638,0.21726296,82576.0,82568.0,0.355234]
[1743374565639,0.21726296,82576.0,82575.0,0.1211238]
[1743374565933,0.21834296,82576.0,82575.0,0.4819238]
[1743374566138,0.1184,82591.0,82590.0,0.1211018]
[1743374566342,0.11908,82591.0,82590.0,0.1225018]
[1743374566737,0.11908,82591.0,82590.0,0.3554018]
[1743374567138,0.2401803,82591.0,82590.0,0.3554018]
[1743374567339,0.00068,82591.0,82590.0,0.3554018]
[1743374567535,0.00927326,82596.0,82595.0,0.1210944]
[1743374567851,0.00112,82596.0,82595.0,0.1224944]
[1743374568052,0.00180001,82596.0,82595.0,0.3479944]
[1743374568253,0.0004,82596.0,82595.0,0.3479944]
[1743374568750,0.00608,82596.0,82595.0,0.3479944]
[1743374569339,0.00408,82596.0,82595.0,0.3479944]
[1743374569545,0.00708,82596.0,82595.0,0.3479944]
[1743374569742,0.0064,82596.0,82595.0,0.3479944]
[1743374571351,0.0605298,82619.0,82595.0,0.3479944]
[1743374571352,0.26038575,82622.0,82605.0,0.0605399]
[1743374571656,0.1758305,82618.0,82611.0,0.121071]
[1743374571839,0.1153,82618.0,82617.0,0.1210622]
[1743374572042,0.11670001,82618.0,82617.0,0.4832622]
[1743374572653,0.23776071,82618.0,82617.0,0.7084622]
[1743374573157,0.24679769,82618.0,82617.0,0.4832622]
[1743374573756,0.12573699,82618.0,82617.0,0.4832622]
[1743374574145,0.24679769,82618.0,82617.0,0.4832622]
[1743374574355,0.01043699,82618.0,82617.0,0.4832622]
[1743374574655,0.24925161,82622.0,82621.0,0.1210563]
[1743374574848,0.00906285,82626.0,82625.0,0.1210505]
[1743374575046,0.00906285,82626.0,82625.0,0.1228505]
[1743374575557,0.1158,82632.0,82627.0,0.060523]
[1743374575756,0.2285,82639.0,82638.0,0.1210314]
[1743374575949,0.2285,82639.0,82638.0,0.3634314]
[1743374576454,0.34953,82639.0,82638.0,0.3634314]
[1743374576854,0.34953,82639.0,82638.0,0.7242314]
[1743374576855,0.2285,82639.0,82638.0,0.7242314]
[1743374578263,0.2375775,82639.0,82638.0,0.7242314]
[1743374578662,0.2435775,82639.0,82638.0,0.7242314]
[1743374578956,0.2495775,82639.0,82638.0,0.7242314]
[1743374579859,0.00018158,82647.0,82643.0,0.1210241]
[1743374580055,0.00932812,82647.0,82646.0,0.1210197]
[1743374580253,0.12119988,82647.0,82646.0,0.0018]
[1743374581165,0.61192743,82647.0,82646.0,0.0018]
[1743374581364,0.12103,82640.0,82639.0,0.1210292]
[1743374581566,0.48183,82640.0,82639.0,0.0018]
[1743374581769,0.1210417,82631.0,82630.0,0.00018158]
[1743374582061,0.1210417,82631.0,82630.0,0.00198158]
[1743374582261,0.1210417,82631.0,82605.0,0.4818792]
[1743374582262,0.1210578,82620.0,82605.0,0.4818792]
[1743374582452,0.1217778,82620.0,82604.0,0.2326]
[1743374582648,0.1217778,82620.0,82609.0,0.1210734]
[1743374582851,0.1217778,82620.0,82607.0,0.0605381]
[1743374582852,0.1217778,82620.0,82608.0,0.3608]
[1743374583052,0.3463778,82620.0,82612.0,0.2421371]
[1743374583249,0.46667848,82620.0,82612.0,0.1210682]
[1743374583868,0.46667848,82620.0,82611.0,0.00018158]
[1743374584160,0.46667848,82620.0,82615.0,0.0605318]
[1743374584364,0.46667848,82620.0,82612.0,0.1173]
[1743374584562,0.46667848,82620.0,82614.0,0.1210665]
[1743374584970,0.46667848,82620.0,82613.0,0.1210681]
[1743374585268,0.1092,82620.0,82619.0,0.12154345]
[1743374585465,0.1112,82620.0,82619.0,0.12154345]
[1743374585653,0.1102,82620.0,82619.0,0.12154345]
[1743374585858,0.1112,82620.0,82619.0,0.12154345]
[1743374586160,0.2322578,82620.0,82619.0,0.35764345]
[1743374586367,0.2322578,82620.0,82619.0,0.00048415]
[1743374586967,0.2302578,82620.0,82619.0,0.00048415]
[1743374587164,0.2302578,82620.0,82619.0,0.00148415]
[1743374587363,0.3512946,82620.0,82619.0,0.00148415]
[1743374587568,0.3512946,82620.0,82619.0,0.12254345]
[1743374587968,0.3502946,82620.0,82619.0,0.12254345]
[1743374588271,0.3515746,82620.0,82619.0,0.00276415]
[1743374588473,0.5006546,82620.0,82619.0,0.00176415]
[1743374588771,0.5006546,82620.0,82619.0,0.00048415]
[1743374588772,0.5026546,82620.0,82619.0,0.00048415]
[1743374589364,0.1210695,82612.0,82611.0,0.00018158]
[1743374589565,0.1217495,82612.0,82611.0,0.00018158]
[1743374589760,0.1217495,82612.0,82611.0,0.12253258]
[1743374590177,0.2427863,82612.0,82611.0,0.00146158]
[1743374590369,0.2427863,82612.0,82611.0,0.00018158]
[1743374590564,0.2427863,82612.0,82611.0,0.00146158]
[1743374590965,0.1210813,82604.0,82603.0,0.00048424]
[1743374591160,0.1223613,82604.0,82603.0,0.00180424]
[1743374591860,0.3548613,82604.0,82603.0,0.00180424]
[1743374592372,0.23378,82604.0,82603.0,0.12288694]
[1743374592579,0.3548613,82604.0,82603.0,0.12288694]
[1743374592772,0.3548613,82604.0,82603.0,0.35328694]
[1743374593279,0.3548613,82604.0,82603.0,0.00180424]
[1743374593661,0.47592154,82604.0,82603.0,0.00180424]
[1743374593860,0.47592154,82604.0,82590.0,0.3608]
[1743374593861,0.121093,82596.0,82590.0,0.3608]
[1743374594067,0.1211003,82591.0,82590.0,0.3608]
[1743374594365,0.1218203,82591.0,82590.0,0.36144]
[1743374594569,0.24288054,82591.0,82590.0,0.36144]
[1743374595273,0.24288054,82591.0,82590.0,0.36444]
[1743374595481,0.00072,82591.0,82590.0,0.4855418]
[1743374595966,0.3474144,82595.0,82594.0,0.1210959]
[1743374596167,0.3482144,82595.0,82594.0,0.1218959]
[1743374596667,0.22712,82595.0,82594.0,0.1218959]